bitfinex/quotes_SOLUSD_20241126
["timestamp","ask_amount","ask_price","bid_price","bid_amount"]
[1732652911171,20.14980201,229.09,229.01,20.14980201]
[1732652911878,20.14980201,229.06,229.0,4.3668]
[1732652912579,20.14980201,229.07,229.0,24.51660201]
[1732652912786,20.14980201,229.06,228.98,20.14980201]
[1732652913783,20.14980201,229.07,229.0,20.14980201]
[1732652914176,20.14980201,229.07,229.0,24.51640201]
[1732652914678,20.14980201,229.05,228.99,4.3669]
[1732652915060,20.14980201,229.07,228.99,24.51670201]
[1732652915885,1.3095,229.09,229.01,20.14980201]
[1732652915886,20.14980201,229.09,229.01,20.14980201]
[1732652916078,20.14980201,229.09,229.02,4.3664]
[1732652916378,22.8842,229.16,229.03,20.14980201]
[1732652916379,20.14980201,229.1,229.03,20.14980201]
[1732652917371,20.14980201,229.12,229.05,20.14980201]
[1732652917868,22.8842,229.16,229.04,4.366]
[1732652917869,20.14980201,229.14,229.07,20.14980201]
[1732652918070,20.14980201,229.12,229.05,20.14980201]
[1732652918782,20.14980201,229.12,229.04,4.366]
[1732652919181,20.14980201,229.12,229.05,20.14980201]
[1732652920472,20.14980201,229.12,229.05,24.51540201]
[1732652921378,20.14980201,229.08,229.01,20.14980201]
[1732652921589,20.14980201,229.04,228.94,15.2877]
[1732652921789,20.14980201,229.04,228.97,20.14980201]
[1732652921973,20.14980201,229.01,228.94,24.51770201]
[1732652922372,20.14980201,229.02,228.95,20.14980201]
[1732652922571,4.5833,229.09,228.96,20.14980201]
[1732652922572,20.14980201,229.03,228.96,20.14980201]
[1732652922793,20.14980201,229.04,228.97,20.14980201]
[1732652922979,20.14980201,229.05,228.97,20.14980201]
[1732652923189,20.14980201,229.06,228.99,20.14980201]
[1732652923372,20.14980201,229.06,228.94,15.2877]
[1732652923373,20.14980201,229.09,229.01,20.14980201]
[1732652923693,1.3094,229.11,228.95,23.776884]
[1732652923694,20.14980201,229.11,229.03,20.14980201]
[1732652924268,12.59859823,229.11,229.03,12.59859823]
[1732652924773,13.90799823,229.11,229.04,4.366]
[1732652926073,13.90799823,229.11,229.04,12.59859823]
[1732652926475,13.90799823,229.11,229.03,12.59859823]
[1732652926797,12.59859823,229.1,229.03,12.59859823]
[1732652926991,13.90799823,229.11,229.04,12.59859823]
[1732652927189,12.59859823,229.1,229.02,16.96499823]
[1732652927384,12.59859823,229.09,229.02,4.3664]
[1732652927593,12.59859823,229.07,229.02,4.3664]
[1732652928194,12.59859823,229.09,229.02,4.3664]
[1732652928504,12.59859823,229.11,229.04,12.59859823]
[1732652928799,12.59859823,229.11,229.02,16.96499823]
[1732652928998,12.59859823,229.08,229.02,4.3664]
[1732652929586,12.59859823,229.08,228.99,12.59859823]
[1732652929794,12.59859823,229.08,229.0,4.3668]
[1732652930571,12.59859823,229.1,229.01,12.59859823]
[1732652931192,12.59859823,229.12,229.03,12.59859823]
[1732652931375,12.59859823,229.1,229.03,12.59859823]
[1732652931577,12.59859823,229.1,229.02,4.3664]
[1732652931902,12.59859823,229.1,229.03,12.59859823]
[1732652932199,12.59859823,229.07,229.02,4.3664]
[1732652932401,12.59859823,229.09,229.02,4.3664]
[1732652932701,12.59859823,229.09,229.03,12.59859823]
[1732652932880,12.59859823,229.11,229.03,12.59859823]
[1732652933304,21.3093,229.13,229.02,4.3664]
[1732652933305,12.59859823,229.13,229.05,12.59859823]
[1732652933684,12.59859823,229.13,229.06,4.3656]
[1732652936299,13.90789823,229.13,229.06,4.3656]
[1732652936981,12.59859823,229.11,228.98,15.417]
[1732652937177,12.59859823,229.06,228.98,15.417]
[1732652937489,12.59859823,229.06,228.98,28.01559823]
[1732652938488,12.59859823,229.06,228.99,4.367]
[1732652938683,12.59859823,229.06,229.0,12.59859823]
[1732652938875,12.59859823,229.08,229.0,12.59859823]
[1732652939280,12.59859823,229.1,229.02,12.59859823]
[1732652940681,12.59859823,229.08,229.0,12.59859823]
[1732652940981,12.59859823,229.09,229.01,32.59859823]
[1732652941606,4.5819,229.16,229.01,20.0]
[1732652941607,12.59859823,229.07,229.01,20.0]
[1732652941807,12.59859823,229.07,229.01,24.3665]
[1732652942306,12.59859823,229.07,229.01,36.96509823]
[1732652942503,12.59859823,229.09,229.01,36.96509823]
[1732652942881,12.59859823,229.11,229.03,12.59859823]
[1732652943904,12.59859823,229.11,229.04,4.366]
[1732652944115,12.59859823,229.1,229.04,4.366]
[1732652944911,12.59859823,229.13,229.06,12.59859823]
[1732652945381,12.59859823,229.18,229.11,12.59859823]
[1732652945587,12.59859823,229.18,229.05,23.776884]
[1732652945588,12.59859823,229.22,229.14,12.59859823]
[1732652945810,12.59859823,229.23,229.16,12.59859823]
[1732652946487,12.59859823,229.24,229.16,12.59859823]
[1732652946807,16.1704,229.2,229.13,20.0]
[1732652947009,12.59859823,229.18,229.1,12.59859823]
[1732652947195,12.59859823,229.17,229.1,12.59859823]
[1732652947604,12.59859823,229.19,229.12,12.59859823]
[1732652948307,6.4629,229.22,229.07,24.3654]
[1732652948308,12.59859823,229.14,229.07,24.3654]
[1732652948512,12.59859823,229.13,229.08,20.0]
[1732652948682,12.59859823,229.13,229.05,12.59859823]
[1732652948888,12.59859823,229.13,229.06,4.3656]
[1732652949101,20.0,229.19,229.06,4.3656]
[1732652949403,12.59859823,229.18,229.11,12.59859823]
[1732652949807,12.59859823,229.18,229.09,12.59859823]
[1732652950320,12.59859823,229.18,229.1,4.3649]
[1732652952311,12.59859823,229.18,229.1,16.96349823]
[1732652952619,12.59859823,229.22,229.15,12.59859823]
[1732652953421,12.59859823,229.2,229.11,36.37548223]
[1732652953794,12.59859823,229.16,229.09,12.59859823]
[1732652954023,12.59859823,229.14,229.05,4.3658]
[1732652954321,12.59859823,229.13,229.06,12.59859823]
[1732652955403,12.59859823,229.15,229.08,12.59859823]
[1732652955794,12.59859823,229.16,229.09,16.96359823]
[1732652955995,12.59859823,229.16,229.09,4.365]
[1732652956808,12.59859823,229.16,229.08,4.3652]
[1732652957507,12.59859823,229.17,229.09,12.59859823]
[1732652958118,12.59859823,229.2,229.13,12.59859823]
[1732652958298,12.59859823,229.18,229.11,12.59859823]
[1732652958501,12.59859823,229.18,229.1,12.59859823]
[1732652958702,12.59859823,229.18,229.11,12.59859823]
[1732652958928,12.59859823,229.18,229.12,4.3645]
[1732652960523,12.59859823,229.17,229.12,4.3645]
[1732652960821,12.59859823,229.17,229.09,36.37548223]
[1732652960822,12.59859823,229.14,229.06,12.59859823]
[1732652961030,22.59859823,229.24,229.04,15.5845]
[1732652961031,12.59859823,229.12,229.04,15.5845]
[1732652961202,12.59859823,229.12,229.04,19.9505]
[1732652961602,16.0242,229.19,229.04,19.9505]
[1732652961603,1.3085,229.27,229.11,12.59859823]
[1732652961928,12.59859823,229.25,229.17,12.59859823]
[1732652962304,12.59859823,229.29,229.21,12.59859823]
[1732652962827,12.59859823,229.29,229.21,16.96119823]
[1732652963021,12.59859823,229.27,229.21,16.96119823]
[1732652963504,12.59859823,229.25,229.19,20.0]
[1732652963826,12.59859823,229.29,229.2,12.59859823]
[1732652964004,12.59859823,229.31,229.22,12.59859823]
[1732652964717,12.59859823,229.28,229.2,20.0]
[1732652964928,12.59859823,229.24,229.17,4.3635]
[1732652965120,12.59859823,229.22,229.14,12.59859823]
[1732652965308,12.59859823,229.22,229.14,16.96269823]
[1732652966306,12.59859823,229.24,229.17,12.59859823]
[1732652966504,12.59859823,229.23,229.16,12.59859823]
[1732652967315,12.59859823,229.23,229.15,36.96239823]
[1732652967629,12.59859823,229.24,229.16,12.59859823]
[1732652968409,12.59859823,229.24,229.17,12.59859823]
[1732652969133,12.59859823,229.23,229.16,4.3636]
[1732652969331,1.3086,229.24,229.12,17.3549]
[1732652969332,12.59859823,229.21,229.14,12.59859823]
[1732652969534,12.59859823,229.2,229.14,4.364]
[1732652970211,12.59859823,229.23,229.16,12.59859823]
[1732652970418,12.59859823,229.22,229.14,16.96259823]
[1732652970614,12.59859823,229.19,229.14,4.364]
[1732652970813,13.90719823,229.24,229.14,16.96259823]
[1732652970814,12.59859823,229.21,229.14,16.96259823]
[1732652971036,12.59859823,229.21,229.12,6.4438]
[1732652971037,12.59859823,229.19,229.11,16.96309823]
[1732652971338,12.59859823,229.19,229.12,12.59859823]
[1732652971541,12.59859823,229.2,229.13,12.59859823]
[1732652971835,12.59859823,229.2,229.07,6.3814]
[1732652971836,12.59859823,229.16,229.08,12.59859823]
[1732652972038,12.59859823,229.14,229.07,4.3653]
[1732652972239,12.59859823,229.15,229.07,16.96389823]
[1732652972438,12.59859823,229.14,229.07,4.3653]
[1732652972646,12.59859823,229.14,229.07,16.96389823]
[1732652972935,12.59859823,229.15,229.08,12.59859823]
[1732652973147,12.59859823,229.17,229.09,12.59859823]
[1732652973513,12.59859823,229.18,229.11,12.59859823]
[1732652973733,7.8309,229.26,229.17,12.59859823]
[1732652973931,7.8309,229.26,229.19,12.59859823]
[1732652974133,12.59859823,229.22,229.11,20.0]
[1732652974342,12.59859823,229.22,229.14,12.59859823]
[1732652975437,9.99,229.2,229.14,16.96269823]
[1732652979140,23.89749823,229.2,229.13,12.59859823]
[1732652979346,11.2989,229.2,229.13,12.59859823]
[1732652979541,9.99,229.2,229.14,12.59859823]
[1732652979836,9.99,229.2,229.15,12.59859823]
[1732652980141,9.99,229.2,229.14,12.59859823]
[1732652981438,9.99,229.2,229.14,16.96259823]
[1732652984443,9.99,229.2,229.18,12.59859823]
[1732652985735,9.99,229.2,229.19,4.3631]
[1732652985934,9.99,229.2,229.15,12.59859823]
[1732652986141,9.99,229.2,229.12,28.141384]
[1732652986142,22.58859823,229.2,229.12,4.3645]
[1732652986339,22.58859823,229.2,229.13,32.59859823]
[1732652986642,9.99,229.2,229.15,12.59859823]
[1732652987023,9.99,229.2,229.14,12.59859823]
[1732652987423,22.58859823,229.2,229.13,32.59859823]
[1732652987843,9.99,229.2,229.14,4.3641]
[1732652988742,9.99,229.2,229.17,12.59859823]
[1732652989429,9.99,229.2,229.16,12.59859823]
[1732652990042,9.99,229.2,229.14,4.3641]
[1732652990043,9.99,229.2,229.14,16.96269823]
[1732652991150,11.2989,229.2,229.13,16.96269823]
[1732652991444,11.2989,229.2,229.08,12.59859823]
[1732652991445,12.59859823,229.16,229.08,12.59859823]
[1732652991627,12.59859823,229.15,229.08,12.59859823]
[1732652991828,12.59859823,229.17,229.1,12.59859823]
[1732652992229,13.90759823,229.18,229.11,16.96329823]
[1732652992551,12.59859823,229.19,229.12,12.59859823]
[1732652993628,12.59859823,229.19,229.13,4.3643]
[1732652994035,12.59859823,229.18,229.13,4.3643]
[1732652994430,12.59859823,229.17,229.11,4.3647]
[1732652994631,12.59859823,229.14,229.05,27.74869823]
[1732652994846,12.59859823,229.09,229.02,12.59859823]
[1732652995142,20.0,229.16,229.0,16.96539823]
[1732652995143,12.59859823,229.08,229.0,16.96539823]
[1732652995443,12.59859823,229.04,228.98,4.367]
[1732652995634,12.59859823,229.05,228.98,4.367]
[1732652995822,13.90809823,229.09,229.01,12.59859823]
[1732652996235,13.90799823,229.11,229.04,12.59859823]
[1732652996446,12.59859823,229.12,229.04,12.59859823]
[1732652996621,18.79419823,229.15,229.07,12.59859823]
[1732652996824,6.1956,229.15,229.09,12.59859823]
[1732652997026,13.90769823,229.16,229.09,12.59859823]
[1732652997939,12.59859823,229.17,229.1,12.59859823]
[1732652998139,12.59859823,229.16,229.09,16.96359823]
[1732652998347,12.59859823,229.15,229.08,4.3652]
[1732652998543,12.59859823,229.15,229.08,16.96379823]
[1732652998845,12.59859823,229.18,229.1,12.59859823]
[1732652999051,12.59859823,229.19,229.12,12.59859823]
[1732652999344,12.59859823,229.18,229.11,12.59859823]
[1732652999545,12.59859823,229.18,229.1,12.59859823]
[1732652999927,12.59859823,229.14,229.06,12.59859823]
[1732653000144,12.59859823,229.13,229.06,12.59859823]
[1732653000333,12.59859823,229.11,229.05,4.3658]
[1732653000533,12.59859823,229.1,229.03,16.96469823]
[1732653000733,1.309,229.19,229.09,12.59859823]
[1732653000928,1.309,229.19,229.05,12.59859823]
[1732653000929,12.59859823,229.12,229.05,12.59859823]
[1732653001455,12.59859823,229.14,229.07,12.59859823]
[1732653001753,12.59859823,229.15,229.08,12.59859823]
[1732653001925,12.59859823,229.14,229.08,4.3651]
[1732653002128,12.59859823,229.11,229.04,4.366]
[1732653002350,12.59859823,229.1,229.02,12.59859823]
[1732653002552,12.59859823,229.05,229.0,4.3668]
[1732653002846,12.59859823,229.01,228.93,15.8467]
[1732653003048,12.59859823,228.96,228.89,4.3689]
[1732653003252,12.59859823,228.95,228.89,4.3689]
[1732653003426,12.59859823,228.93,228.87,44.52850945]
[1732653003627,12.59859823,228.91,228.85,4.3695]
[1732653003848,12.59859823,228.93,228.86,12.59859823]
[1732653004031,6.625,228.98,228.89,12.59859823]
[1732653004032,12.59859823,228.97,228.89,12.59859823]
[1732653004238,6.625,228.98,228.83,15.2951]
[1732653004239,19.22359823,228.98,228.9,12.59859823]
[1732653004533,19.22359823,228.98,228.83,15.2951]
[1732653004534,26.80509356,228.98,228.91,20.18009356]
[1732653004734,20.18009356,229.02,228.94,20.18009356]
[1732653005156,20.18009356,229.03,228.96,20.18009356]
[1732653005326,6.625,229.04,228.99,20.18009356]
[1732653005523,20.18009356,229.07,228.99,20.18009356]
[1732653005948,20.18009356,229.05,228.99,4.3669]
[1732653006154,20.18009356,229.0,228.92,24.54819356]
[1732653006340,20.18009356,228.98,228.92,4.3681]
[1732653006751,20.18009356,228.96,228.9,4.3685]
[1732653007348,20.18009356,228.96,228.89,20.18009356]
[1732653007550,20.18009356,228.97,228.9,20.18009356]
[1732653007731,23.776884,229.08,228.91,20.18009356]
[1732653007732,20.18009356,228.98,228.91,20.18009356]
[1732653008037,20.18009356,228.99,228.92,24.54829356]
[1732653008658,20.18009356,229.02,228.95,20.18009356]
[1732653008836,20.18009356,229.03,228.96,20.18009356]
[1732653009036,20.18009356,229.04,228.97,20.18009356]
[1732653009241,20.18009356,229.05,228.98,20.18009356]
[1732653010137,20.18009356,229.05,228.98,24.54719356]
[1732653010541,20.18009356,229.11,229.04,20.18009356]
[1732653010737,20.18009356,229.15,229.07,20.18009356]
[1732653010944,20.18009356,229.15,229.08,20.18009356]
[1732653011157,20.18009356,229.19,229.11,20.18009356]
[1732653011363,21.48899356,229.19,229.11,20.18009356]
[1732653011666,6.625,229.23,229.16,20.18009356]
[1732653011667,26.80509356,229.23,229.16,20.18009356]
[1732653011969,20.18009356,229.22,229.14,20.18009356]
[1732653012251,20.18009356,229.22,229.14,24.54409356]
[1732653012461,20.18009356,229.26,229.18,20.18009356]
[1732653012759,20.18009356,229.23,229.16,20.18009356]
[1732653012951,20.18009356,229.25,229.17,20.18009356]
[1732653013341,20.18009356,229.23,229.16,20.18009356]
[1732653013757,20.18009356,229.27,229.19,20.18009356]
[1732653014060,20.18009356,229.29,229.19,24.54319356]
[1732653014235,20.18009356,229.25,229.19,20.0]
[1732653014746,35.07519356,229.35,229.17,20.18009356]
[1732653014747,20.18009356,229.24,229.17,20.18009356]
[1732653014933,20.18009356,229.23,229.15,4.3639]
[1732653015139,20.18009356,229.23,229.15,24.54399356]
[1732653015646,20.18009356,229.26,229.19,20.18009356]
[1732653015832,20.18009356,229.28,229.19,20.18009356]
[1732653016033,20.18009356,229.29,229.19,24.54319356]
[1732653017260,21.48859356,229.27,229.19,24.54319356]
[1732653017452,26.80509356,229.35,229.16,20.18009356]
[1732653017453,20.18009356,229.24,229.16,20.18009356]
[1732653017761,20.18009356,229.24,229.17,20.18009356]
[1732653018262,20.18009356,229.23,229.17,4.3635]
[1732653018440,21.48869356,229.25,229.18,20.18009356]
[1732653019148,30.17009356,229.2,229.14,20.0]
[1732653019343,20.18009356,229.18,229.11,20.18009356]
[1732653019554,20.18009356,229.19,229.11,20.18009356]
[1732653019865,20.18009356,229.19,229.07,4.3654]
[1732653019866,20.18009356,229.19,229.12,20.18009356]
[1732653020038,9.99,229.2,229.14,20.18009356]
[1732653020238,9.99,229.2,229.13,24.54429356]
[1732653020440,9.99,229.2,229.15,20.18009356]
[1732653020744,9.99,229.2,229.17,20.18009356]
[1732653020941,9.99,229.2,229.15,20.18009356]
[1732653021152,9.99,229.2,229.16,20.18009356]
[1732653021448,20.18009356,229.17,229.09,20.0]
[1732653021644,20.18009356,229.16,229.09,20.18009356]
[1732653021841,20.18009356,229.17,229.1,20.18009356]
[1732653022059,20.18009356,229.15,229.08,20.18009356]
[1732653022268,20.18009356,229.1,229.03,20.18009356]
[1732653022470,20.18009356,229.06,228.99,15.129]
[1732653022650,20.18009356,229.05,228.97,20.18009356]
[1732653022960,20.18009356,229.03,228.96,20.18009356]
[1732653023163,20.18009356,229.02,228.95,20.18009356]
[1732653023378,20.18009356,228.99,228.91,20.18009356]
[1732653023562,5.0,229.1,228.89,4.3689]
[1732653023563,20.18009356,228.95,228.89,4.3689]
[1732653023867,20.18009356,228.98,228.91,20.18009356]
[1732653024169,15.3008,229.06,228.94,20.18009356]
[1732653024170,20.18009356,229.01,228.94,20.18009356]
[1732653024662,20.18009356,229.03,228.96,20.18009356]
[1732653024870,20.18009356,229.04,228.97,20.18009356]
[1732653025042,20.18009356,229.03,228.96,20.18009356]
[1732653025237,20.18009356,229.05,228.98,20.18009356]
[1732653025436,20.18009356,229.04,228.97,24.54739356]
[1732653025659,20.18009356,229.04,228.97,4.3673]
[1732653025860,20.18009356,229.04,228.97,24.54739356]
[1732653026080,20.18009356,229.04,228.97,4.3673]
[1732653026579,9.99,229.2,229.03,20.18009356]
[1732653026770,20.18009356,229.11,229.04,20.18009356]
[1732653026957,20.18009356,229.09,229.02,20.18009356]
[1732653027771,20.18009356,229.09,229.02,24.54639356]
[1732653027952,20.18009356,229.11,229.02,24.54639356]
[1732653028679,20.18009356,229.06,228.98,24.54709356]
[1732653028981,20.18009356,229.04,228.97,20.18009356]
[1732653029184,20.18009356,229.02,228.93,20.18009356]
[1732653029368,20.18009356,229.0,228.92,20.18009356]
[1732653029696,20.18009356,229.02,228.94,20.18009356]
[1732653029861,21.48999356,229.02,228.94,20.18009356]
[1732653030054,20.18009356,229.02,228.95,20.18009356]
[1732653030257,20.18009356,229.04,228.96,20.18009356]
[1732653030482,20.18009356,229.02,228.95,20.18009356]
[1732653030656,20.18009356,229.03,228.95,20.18009356]
[1732653031072,20.18009356,229.02,228.95,20.18009356]
[1732653031276,20.18009356,229.0,228.92,20.18009356]
[1732653031471,20.18009356,228.97,228.9,20.18009356]
[1732653032065,20.18009356,229.01,228.94,20.18009356]
[1732653032684,21.49009356,229.01,228.94,20.18009356]
[1732653032876,20.18009356,229.0,228.92,20.18009356]
[1732653033183,20.18009356,229.0,228.94,20.18009356]
[1732653034268,20.18009356,228.96,228.77,20.0547]
[1732653034471,20.18009356,228.87,228.79,24.55089356]
[1732653034665,20.18009356,228.81,228.75,4.3715]
[1732653034867,20.18009356,228.81,228.74,4.86597437]
[1732653035099,20.18009356,228.81,228.74,25.04606793]
[1732653035386,20.18009356,228.81,228.74,0.49427437]
[1732653035582,20.18009356,228.81,228.74,4.86597437]
[1732653035762,20.18009356,228.84,228.76,20.18009356]
[1732653036387,20.18009356,228.82,228.74,25.04606793]
[1732653036587,20.18009356,228.82,228.75,20.18009356]
[1732653036891,20.18009356,228.83,228.75,20.18009356]
[1732653037061,20.18009356,228.84,228.76,20.18009356]
[1732653037266,20.18009356,228.83,228.75,20.18009356]
[1732653037464,20.18009356,228.82,228.74,25.04606793]
[1732653037887,20.18009356,228.81,228.74,25.04606793]
[1732653038194,20.18009356,228.83,228.75,20.18009356]
[1732653038392,20.18009356,228.84,228.77,20.18009356]
[1732653038569,20.18009356,228.83,228.75,20.18009356]
[1732653038770,20.18009356,228.82,228.74,25.04606793]
[1732653038966,20.18009356,228.78,228.74,0.49427437]
[1732653039190,20.18009356,228.75,228.74,0.49427437]
[1732653041090,20.18009356,228.76,228.74,0.49427437]
[1732653041980,1.3114,228.75,228.74,0.49427437]
[1732653042197,21.49149356,228.75,228.74,0.49427437]
[1732653042377,20.18009356,228.78,228.74,0.49427437]
[1732653042695,21.49109356,228.82,228.74,20.67436793]
[1732653042876,20.18009356,228.81,228.74,20.67436793]
[1732653043068,1.3107,228.88,228.74,0.49427437]
[1732653043069,20.18009356,228.79,228.74,0.49427437]
[1732653043274,20.18009356,228.75,228.74,0.49427437]
[1732653043478,20.18009356,228.76,228.74,0.49427437]
[1732653043681,20.18009356,228.79,228.74,0.49427437]
[1732653043885,20.18009356,228.77,228.74,0.49427437]
[1732653044382,14.8304,228.88,228.74,0.49427437]
[1732653044383,20.18009356,228.8,228.74,0.49427437]
[1732653044727,20.18009356,228.84,228.76,20.18009356]
[1732653044987,20.18009356,228.82,228.74,20.67436793]
[1732653045196,20.18009356,228.83,228.75,20.18009356]
[1732653045576,20.18009356,228.84,228.77,20.18009356]
[1732653045774,20.18009356,228.85,228.77,20.18009356]
[1732653045977,40.18009356,228.86,228.79,20.18009356]
[1732653046267,20.18009356,228.88,228.81,20.18009356]
[1732653046466,20.18009356,228.87,228.8,20.18009356]
[1732653047083,20.18009356,228.87,228.8,24.55059356]
[1732653047496,20.18009356,228.84,228.77,20.18009356]
[1732653047794,1.3107,228.88,228.76,4.3713]
[1732653047795,20.18009356,228.85,228.78,20.18009356]
[1732653048297,20.18009356,228.86,228.79,20.18009356]
[1732653048676,20.18009356,228.88,228.81,20.18009356]
[1732653048880,20.18009356,228.84,228.76,20.18009356]
[1732653049088,20.18009356,228.85,228.77,20.18009356]
[1732653049277,20.18009356,228.85,228.78,20.18009356]
[1732653049905,20.18009356,228.86,228.79,20.18009356]
[1732653050068,20.18009356,228.87,228.79,20.18009356]
[1732653050402,20.18009356,228.9,228.82,20.18009356]
[1732653050587,3.2759,228.94,228.74,39.57225837]
[1732653050588,20.18009356,228.86,228.79,20.18009356]
[1732653050783,20.18009356,228.91,228.77,20.18009356]
[1732653050987,20.18009356,228.84,228.76,20.18009356]
[1732653051287,20.18009356,228.91,228.76,20.18009356]
[1732653051288,20.18009356,228.83,228.76,20.18009356]
[1732653051489,20.18009356,228.81,228.74,20.67436793]
[1732653051680,20.18009356,228.91,228.78,20.18009356]
[1732653051884,20.18009356,228.9,228.82,20.18009356]
[1732653052093,20.18009356,228.9,228.83,20.18009356]
[1732653052600,16.3725,228.99,228.83,20.18009356]
[1732653052601,20.18009356,228.98,228.89,20.18009356]
[1732653052901,20.18009356,228.97,228.89,20.18009356]
[1732653053094,20.18009356,228.98,228.91,20.18009356]
[1732653053393,20.18009356,229.0,228.93,20.18009356]
[1732653053703,20.18009356,229.05,228.97,20.18009356]
[1732653053884,20.18009356,229.03,228.96,20.18009356]
[1732653054081,20.18009356,229.02,228.94,20.18009356]
[1732653054402,20.18009356,229.02,228.95,20.18009356]
[1732653054592,20.18009356,229.04,228.96,20.18009356]
[1732653054776,21.48979356,229.06,228.99,20.18009356]
[1732653055087,20.18009356,229.04,228.96,40.18009356]
[1732653056090,20.18009356,229.04,228.96,44.54759356]
[1732653059107,20.18009356,229.11,229.03,20.18009356]
[1732653059281,20.18009356,229.09,229.02,20.18009356]
[1732653059589,20.18009356,229.15,229.08,20.18009356]
[1732653059798,20.18009356,229.16,229.09,20.18009356]
[1732653060191,20.18009356,229.17,229.1,20.18009356]
[1732653060379,20.18009356,229.12,229.05,20.18009356]
[1732653060581,20.18009356,229.16,229.08,20.18009356]
[1732653060791,20.18009356,229.16,229.01,4.3665]
[1732653060792,20.18009356,229.12,229.06,20.0]
[1732653060992,20.18009356,229.12,229.05,20.18009356]
[1732653061299,7.3595,229.19,229.02,20.18009356]
[1732653061300,20.18009356,229.09,229.02,20.18009356]
[1732653062007,20.18009356,229.14,229.06,20.18009356]
[1732653062215,20.18009356,229.14,229.07,20.18009356]
[1732653062412,21.48919356,229.15,229.07,20.18009356]
[1732653062709,20.18009356,229.13,229.05,40.18009356]
[1732653063078,20.18009356,229.11,229.04,20.18009356]
[1732653063282,20.18009356,229.07,228.99,20.18009356]
[1732653063515,20.18009356,229.09,229.01,20.18009356]
[1732653063715,1.3092,229.14,229.05,20.18009356]
[1732653063716,20.18009356,229.12,229.05,20.18009356]
[1732653064028,20.18009356,229.16,229.09,20.18009356]
[1732653064204,21.48919356,229.17,229.1,20.18009356]
[1732653064413,27.53959356,229.19,229.11,20.18009356]
[1732653064811,20.18009356,229.17,229.1,20.18009356]
[1732653065000,7.3595,229.19,229.03,23.776884]
[1732653065001,20.18009356,229.16,229.09,20.18009356]
[1732653065624,9.99,229.2,229.14,20.18009356]
[1732653065824,20.18009356,229.17,229.1,20.18009356]
[1732653066117,30.17009356,229.2,229.12,20.18009356]
[1732653066317,30.17009356,229.2,229.13,20.18009356]
[1732653066518,20.18009356,229.18,229.11,20.18009356]
[1732653066829,9.99,229.2,229.13,20.18009356]
[1732653067120,20.18009356,229.19,229.12,20.18009356]
[1732653067620,20.18009356,229.17,229.08,4.3652]
[1732653067921,20.18009356,229.1,229.03,20.18009356]
[1732653068124,20.18009356,229.06,228.99,20.18009356]
[1732653068300,20.18009356,229.01,228.94,20.18009356]
[1732653068497,20.18009356,229.01,228.89,22.1963]
[1732653068498,20.18009356,228.99,228.9,4.3687]
[1732653068701,20.0,229.07,228.91,20.18009356]
[1732653068702,20.18009356,228.98,228.91,20.18009356]
[1732653068912,20.18009356,228.96,228.89,24.54889356]
[1732653069418,20.18009356,229.01,228.94,20.18009356]
[1732653069615,20.18009356,229.02,228.95,20.18009356]
[1732653070212,20.18009356,229.02,228.89,15.291]
[1732653070213,20.18009356,229.01,228.94,20.18009356]
[1732653070420,20.18009356,229.02,228.95,20.18009356]
[1732653071108,20.18009356,229.02,228.95,24.54779356]
[1732653071718,20.18009356,229.01,228.93,20.18009356]
[1732653072422,20.18009356,228.95,228.88,20.18009356]
[1732653072613,20.18009356,228.97,228.89,20.18009356]
[1732653072819,20.18009356,228.98,228.9,20.18009356]
[1732653072995,20.18009356,228.95,228.88,20.18009356]
[1732653073201,1.3099,229.01,228.82,20.18009356]
[1732653073202,20.18009356,228.9,228.82,20.18009356]
[1732653073507,20.18009356,228.86,228.79,20.18009356]
[1732653073698,20.18009356,228.88,228.81,20.18009356]
[1732653073893,6.5483,228.97,228.85,20.18009356]
[1732653074099,6.5483,228.97,228.82,20.18009356]
[1732653074100,20.18009356,228.9,228.82,20.18009356]
[1732653074822,20.18009356,228.88,228.81,20.18009356]
[1732653075022,20.18009356,228.89,228.82,24.55019356]
[1732653075197,20.18009356,228.87,228.79,20.18009356]
[1732653075716,20.18009356,228.87,228.8,20.18009356]
[1732653076218,20.18009356,228.81,228.74,4.86597437]
[1732653076424,20.18009356,228.79,228.74,0.49427437]
[1732653076602,20.18009356,228.81,228.74,0.49427437]
[1732653077292,20.18009356,228.78,228.74,0.49427437]
[1732653077499,20.18009356,228.8,228.74,0.49427437]
[1732653078105,20.18009356,228.81,228.74,4.86597437]
[1732653078304,20.18009356,228.85,228.77,20.18009356]
[1732653078508,20.18009356,228.86,228.78,20.18009356]
[1732653078702,1.3107,228.88,228.78,20.18009356]
[1732653078703,20.18009356,228.85,228.78,20.18009356]
[1732653078904,20.18009356,228.85,228.77,20.18009356]
[1732653079211,20.18009356,228.82,228.74,20.67436793]
[1732653079415,20.18009356,228.8,228.74,0.49427437]
[1732653079616,20.18009356,228.77,228.74,0.49427437]